[Event "*** Titled Tuesday Blitz"]
[Site "Chess.com"]
[Date "2020.05.05"]
[Round "2"]
[White "agrigo3"]
[Black "SketchyMoves"]
[Result "1-0"]
[WhiteElo "2335"]
[BlackElo "2611"]
[TimeControl "180+1"]
[EndTime "10:20:35 PDT"]
[Termination "agrigo3 won by resignation"]

1. Nf3 {[%clk 0:03:00.9]} 1... Nf6 {[%clk 0:02:58.4]} 2. g3 {[%clk 0:02:59.5]}
2... b6 {[%clk 0:02:58.4]} 3. Bg2 {[%clk 0:02:59.8]} 3... Bb7 {[%clk 0:02:59]}
4. O-O {[%clk 0:03:00.1]} 4... c5 {[%clk 0:02:58.9]} 5. c4 {[%clk 0:02:56.2]}
5... e6 {[%clk 0:02:58.9]} 6. b3 {[%clk 0:02:55.9]} 6... Be7 {[%clk 0:02:58.5]}
7. Bb2 {[%clk 0:02:55.8]} 7... O-O {[%clk 0:02:58.3]} 8. e3 {[%clk 0:02:51.2]}
8... d6 {[%clk 0:02:57.9]} 9. d4 {[%clk 0:02:50.5]} 9... cxd4 {[%clk 0:02:58]}
10. Bxd4 {[%clk 0:02:33]} 10... Nbd7 {[%clk 0:02:56.9]} 11. Nbd2 {[%clk
0:02:31.3]} 11... a6 {[%clk 0:02:57]} 12. Qe2 {[%clk 0:02:30.8]} 12... Qc7
{[%clk 0:02:56.6]} 13. Rac1 {[%clk 0:02:30]} 13... Rac8 {[%clk 0:02:56.8]} 14.
Bb2 {[%clk 0:02:28.5]} 14... Rfd8 {[%clk 0:02:55.1]} 15. Rfd1 {[%clk 0:02:28.2]}
15... Qb8 {[%clk 0:02:55.1]} 16. Nd4 {[%clk 0:02:15.4]} 16... Bxg2 {[%clk
0:02:54.8]} 17. Kxg2 {[%clk 0:02:15.4]} 17... Nc5 {[%clk 0:02:53.8]} 18. e4
{[%clk 0:02:05.7]} 18... Qb7 {[%clk 0:02:50.7]} 19. f3 {[%clk 0:02:03.3]} 19...
Rb8 {[%clk 0:02:36.3]} 20. b4 {[%clk 0:01:55.4]} 20... Na4 {[%clk 0:02:36]} 21.
Ba1 {[%clk 0:01:54.8]} 21... e5 {[%clk 0:02:28.3]} 22. Nf5 {[%clk 0:01:53.7]}
22... b5 {[%clk 0:02:27.8]} 23. cxb5 {[%clk 0:01:49.4]} 23... axb5 {[%clk
0:02:28.7]} 24. Nb3 {[%clk 0:01:45.5]} 24... Bf8 {[%clk 0:02:20.4]} 25. Na5
{[%clk 0:01:43.3]} 25... Qa8 {[%clk 0:02:07.2]} 26. Nc6 {[%clk 0:01:42.9]} 26...
Rd7 {[%clk 0:02:05.6]} 27. Nxb8 {[%clk 0:01:42.1]} 27... Qxb8 {[%clk 0:02:06.5]}
28. Qc2 {[%clk 0:01:34.6]} 28... Rd8 {[%clk 0:01:55.8]} 29. Qc7 {[%clk
0:01:32.4]} 29... Qa8 {[%clk 0:01:52.7]} 30. Qc6 {[%clk 0:01:28.5]} 30... Qb8
{[%clk 0:01:50.4]} 31. a3 {[%clk 0:01:25.5]} 31... g6 {[%clk 0:01:45.7]} 32. Ne3
{[%clk 0:00:45]} 32... Bh6 {[%clk 0:01:45.5]} 33. Rd3 {[%clk 0:00:42.3]} 33...
Qa7 {[%clk 0:01:37]} 34. Qc7 {[%clk 0:00:39.9]} 34... Qa8 {[%clk 0:01:34.8]} 35.
Rcd1 {[%clk 0:00:30.1]} 35... Nxe4 {[%clk 0:00:53.6]} 36. fxe4 {[%clk
0:00:29.1]} 36... Rc8 {[%clk 0:00:52.8]} 37. Qxd6 {[%clk 0:00:27.2]} 37... Qxe4+
{[%clk 0:00:52.8]} 38. Kf2 {[%clk 0:00:12.7]} 38... Re8 {[%clk 0:00:28.8]} 39.
Qd5 {[%clk 0:00:11.7]} 39... Bxe3+ {[%clk 0:00:20.5]} 40. Rxe3 {[%clk
0:00:11.2]} 40... Qg4 {[%clk 0:00:21.2]} 41. Rxe5 {[%clk 0:00:08.2]} 41... Rc8
{[%clk 0:00:16]} 42. Re2 {[%clk 0:00:07.7]} 42... Nc3 {[%clk 0:00:14.8]} 43.
Bxc3 {[%clk 0:00:06.8]} 43... Rxc3 {[%clk 0:00:15.7]} 44. Qd8+ {[%clk
0:00:06.8]} 44... Kg7 {[%clk 0:00:15.5]} 45. Qd4+ {[%clk 0:00:07.3]} 45... Qxd4+
{[%clk 0:00:15.3]} 46. Rxd4 {[%clk 0:00:07.4]} 46... Rxa3 {[%clk 0:00:16.2]} 47.
Rd5 {[%clk 0:00:07.8]} 47... h5 {[%clk 0:00:14.9]} 48. Rxb5 {[%clk 0:00:08.2]}
48... h4 {[%clk 0:00:15.8]} 49. Rb7 {[%clk 0:00:08]} 49... hxg3+ {[%clk
0:00:14.4]} 50. hxg3 {[%clk 0:00:08.3]} 50... Rb3 {[%clk 0:00:15.3]} 51. Ree7
{[%clk 0:00:07.7]} 51... Kh6 {[%clk 0:00:15.9]} 52. Rxf7 {[%clk 0:00:06.7]}
52... Kg5 {[%clk 0:00:16.8]} 53. Rf4 {[%clk 0:00:05.4]} 53... Rb2+ {[%clk
0:00:16.4]} 54. Kf3 {[%clk 0:00:04.9]} 54... Rb3+ {[%clk 0:00:16.8]} 55. Kg2
{[%clk 0:00:05.1]} 55... Rb2+ {[%clk 0:00:15.6]} 56. Kh3 {[%clk 0:00:05.7]}
56... Rb1 {[%clk 0:00:15.5]} 57. Rb5+ {[%clk 0:00:06.2]} 57... Kh6 {[%clk
0:00:15.3]} 58. Kg4 {[%clk 0:00:06.7]} 58... Rc1 {[%clk 0:00:13.3]} 59. Rb6
{[%clk 0:00:07.2]} 59... Rc7 {[%clk 0:00:12.3]} 60. b5 {[%clk 0:00:07.8]} 60...
Rc5 {[%clk 0:00:12.1]} 61. Rb7 {[%clk 0:00:07.6]} 61... Rg5+ {[%clk 0:00:11.5]}
62. Kf3 {[%clk 0:00:06.7]} 62... Rc5 {[%clk 0:00:12.1]} 63. b6 {[%clk
0:00:06.6]} 63... Kg5 {[%clk 0:00:11.8]} 64. Rg4+ {[%clk 0:00:06.3]} 64... Kf5
{[%clk 0:00:12]} 65. Rf4+ {[%clk 0:00:06.8]} 65... Kg5 {[%clk 0:00:12.1]} 66.
Rg4+ {[%clk 0:00:06.4]} 66... Kf5 {[%clk 0:00:12.4]} 67. Rf7+ {[%clk 0:00:06.9]}
67... Ke6 {[%clk 0:00:12.7]} 68. Rc7 {[%clk 0:00:06.7]} 68... Rb5 {[%clk
0:00:10.8]} 69. Rxg6+ {[%clk 0:00:06.7]} 69... Kf5 {[%clk 0:00:11]} 70. Rh6
{[%clk 0:00:06.4]} 70... Rb3+ {[%clk 0:00:10]} 71. Kg2 {[%clk 0:00:07]} 71...
Kg5 {[%clk 0:00:09.6]} 72. Rh4 {[%clk 0:00:07]} 72... Rxb6 {[%clk 0:00:08.2]}
73. Rd4 {[%clk 0:00:07.4]} 73... Rb3 {[%clk 0:00:07.3]} 74. Kh3 {[%clk
0:00:07.8]} 74... Kf5 {[%clk 0:00:06.7]} 75. Rc5+ {[%clk 0:00:07.8]} 75... Ke6
{[%clk 0:00:07.1]} 76. Rg4 {[%clk 0:00:07.7]} 76... Kf6 {[%clk 0:00:06.6]} 77.
Rh4 {[%clk 0:00:08.2]} 77... Rb1 {[%clk 0:00:06.3]} 78. Rh6+ {[%clk 0:00:07.8]}
78... Kg7 {[%clk 0:00:06.3]} 79. Ra6 {[%clk 0:00:08.3]} 79... Rb7 {[%clk
0:00:05.5]} 80. Rcc6 {[%clk 0:00:08.4]} 80... Kf7 {[%clk 0:00:05.1]} 81. Kh4
{[%clk 0:00:09]} 81... Rd7 {[%clk 0:00:05.1]} 82. g4 {[%clk 0:00:09.9]} 82...
Rd1 {[%clk 0:00:04]} 83. g5 {[%clk 0:00:09.7]} 83... Ke7 {[%clk 0:00:04.1]} 84.
Kg4 {[%clk 0:00:10.1]} 84... Kd7 {[%clk 0:00:04.3]} 85. Rf6 {[%clk 0:00:09.8]}
85... Rg1+ {[%clk 0:00:03.9]} 86. Kf4 {[%clk 0:00:09]} 86... Ke7 {[%clk
0:00:04.8]} 87. Ra7+ {[%clk 0:00:08.5]} 87... Ke8 {[%clk 0:00:05.1]} 88. Rb6
{[%clk 0:00:08.7]} 88... Rf1+ {[%clk 0:00:05.5]} 89. Ke5 {[%clk 0:00:08.5]}
89... Re1+ {[%clk 0:00:05.7]} 90. Kf6 {[%clk 0:00:09]} 90... Rf1+ {[%clk
0:00:05.2]} 91. Kg6 {[%clk 0:00:09.1]} 91... Rd1 {[%clk 0:00:02.4]} 92. Rb8+
{[%clk 0:00:09.3]} 92... Rd8 {[%clk 0:00:03]} 93. Rxd8+ {[%clk 0:00:09.7]} 93...
Kxd8 {[%clk 0:00:03.9]} 94. Kf7 {[%clk 0:00:09.9]} 1-0

[Event "*** Titled Tuesday Blitz"]
[Site "Chess.com"]
[Date "2020.05.05"]
[Round "2"]
[White "bascheyaro"]
[Black "matiss90"]
[Result "1/2-1/2"]
[WhiteElo "2705"]
[BlackElo "2496"]
[TimeControl "180+1"]
[EndTime "10:20:39 PDT"]
[Termination "Game drawn - insufficient material"]

1. d4 {[%clk 0:03:00.9]} 1... Nf6 {[%clk 0:02:59]} 2. Nf3 {[%clk 0:03:00.7]}
2... g6 {[%clk 0:02:59.3]} 3. Bf4 {[%clk 0:02:56]} 3... Bg7 {[%clk 0:02:59.2]}
4. e3 {[%clk 0:02:56.4]} 4... d6 {[%clk 0:02:59.3]} 5. c4 {[%clk 0:02:56.8]}
5... O-O {[%clk 0:02:59.3]} 6. Nc3 {[%clk 0:02:55.4]} 6... Nfd7 {[%clk
0:02:59.7]} 7. Bg3 {[%clk 0:02:55]} 7... e5 {[%clk 0:02:59.4]} 8. Be2 {[%clk
0:02:55]} 8... Nc6 {[%clk 0:02:59.5]} 9. O-O {[%clk 0:02:54.1]} 9... f5 {[%clk
0:02:56.7]} 10. Bh4 {[%clk 0:02:54.2]} 10... Bf6 {[%clk 0:02:28.9]} 11. Bxf6
{[%clk 0:02:53.7]} 11... Nxf6 {[%clk 0:02:28.9]} 12. dxe5 {[%clk 0:02:52.7]}
12... dxe5 {[%clk 0:02:21.5]} 13. Qxd8 {[%clk 0:02:49.9]} 13... Rxd8 {[%clk
0:02:22.4]} 14. Nd5 {[%clk 0:02:41.3]} 14... Nxd5 {[%clk 0:02:10.2]} 15. cxd5
{[%clk 0:02:41.4]} 15... Ne7 {[%clk 0:02:08.3]} 16. Nxe5 {[%clk 0:02:41.2]}
16... Nxd5 {[%clk 0:02:04.4]} 17. Bc4 {[%clk 0:02:41.3]} 17... Kg7 {[%clk
0:02:02]} 18. Rac1 {[%clk 0:02:34.6]} 18... c6 {[%clk 0:01:57.8]} 19. Rfd1
{[%clk 0:02:30.4]} 19... Be6 {[%clk 0:01:57.6]} 20. Nd3 {[%clk 0:02:30.1]} 20...
Bf7 {[%clk 0:01:48.8]} 21. Nc5 {[%clk 0:02:20.8]} 21... b6 {[%clk 0:01:45.2]}
22. Na6 {[%clk 0:02:16.4]} 22... Rd7 {[%clk 0:01:40.3]} 23. Bxd5 {[%clk
0:02:12.5]} 23... Bxd5 {[%clk 0:01:28.3]} 24. Nb4 {[%clk 0:01:21.9]} 24... Rad8
{[%clk 0:01:27.1]} 25. f3 {[%clk 0:01:15.1]} 25... c5 {[%clk 0:01:25.8]} 26.
Nxd5 {[%clk 0:01:13.6]} 26... Rxd5 {[%clk 0:01:26.7]} 27. Rxd5 {[%clk
0:01:14.2]} 27... Rxd5 {[%clk 0:01:27.3]} 28. Rc2 {[%clk 0:01:14.8]} 28... Kf6
{[%clk 0:01:26.2]} 29. Kf2 {[%clk 0:01:14.6]} 29... Rd1 {[%clk 0:01:26.1]} 30.
b3 {[%clk 0:01:13.1]} 30... Ke6 {[%clk 0:01:23.9]} 31. Kg3 {[%clk 0:01:07]}
31... Re1 {[%clk 0:01:20.1]} 32. Kf2 {[%clk 0:01:07.1]} 32... Ra1 {[%clk
0:01:19.6]} 33. Rd2 {[%clk 0:01:05.7]} 33... a5 {[%clk 0:01:16.7]} 34. h3 {[%clk
0:01:03.5]} 34... b5 {[%clk 0:01:13.6]} 35. Kg3 {[%clk 0:01:01.3]} 35... c4
{[%clk 0:00:50.8]} 36. bxc4 {[%clk 0:01:01]} 36... bxc4 {[%clk 0:00:51.7]} 37.
Kf4 {[%clk 0:01:01.5]} 37... a4 {[%clk 0:00:45.5]} 38. g4 {[%clk 0:00:57.2]}
38... Rc1 {[%clk 0:00:43.7]} 39. gxf5+ {[%clk 0:00:50.7]} 39... gxf5 {[%clk
0:00:44.6]} 40. a3 {[%clk 0:00:47.7]} 40... c3 {[%clk 0:00:37.6]} 41. Rd4 {[%clk
0:00:47.8]} 41... c2 {[%clk 0:00:36.9]} 42. Rc4 {[%clk 0:00:48.1]} 42... h5
{[%clk 0:00:35.2]} 43. Rc3 {[%clk 0:00:40.9]} 43... h4 {[%clk 0:00:34.8]} 44.
Rc8 {[%clk 0:00:35.2]} 44... Kd7 {[%clk 0:00:34.6]} 45. Rc4 {[%clk 0:00:32.5]}
45... Ke6 {[%clk 0:00:34.3]} 46. Rc3 {[%clk 0:00:32.9]} 46... Kd5 {[%clk
0:00:27.4]} 47. Kxf5 {[%clk 0:00:31.7]} 47... Rf1 {[%clk 0:00:27.5]} 48. e4+
{[%clk 0:00:16.9]} 48... Kd4 {[%clk 0:00:27.4]} 49. Rxc2 {[%clk 0:00:17.8]}
49... Rxf3+ {[%clk 0:00:27.4]} 50. Kg4 {[%clk 0:00:18.3]} 50... Rxa3 {[%clk
0:00:27.2]} 51. Re2 {[%clk 0:00:18.1]} 51... Ke5 {[%clk 0:00:26]} 52. Kxh4
{[%clk 0:00:18]} 52... Rb3 {[%clk 0:00:24.8]} 53. Kg4 {[%clk 0:00:17.7]} 53...
a3 {[%clk 0:00:24.9]} 54. h4 {[%clk 0:00:18.2]} 54... Rb2 {[%clk 0:00:24.6]} 55.
Re3 {[%clk 0:00:18.8]} 55... a2 {[%clk 0:00:24]} 56. Ra3 {[%clk 0:00:19.4]}
56... Rg2+ {[%clk 0:00:23.8]} 57. Kf3 {[%clk 0:00:19.4]} 57... Rh2 {[%clk
0:00:23.5]} 58. Ra5+ {[%clk 0:00:18.7]} 58... Kd4 {[%clk 0:00:22.5]} 59. h5
{[%clk 0:00:17.6]} 59... Kc3 {[%clk 0:00:11.6]} 60. Kg4 {[%clk 0:00:14.7]} 60...
Kb2 {[%clk 0:00:08.7]} 61. e5 {[%clk 0:00:14.5]} 61... Rg2+ {[%clk 0:00:06.9]}
62. Kf5 {[%clk 0:00:13.8]} 62... Rf2+ {[%clk 0:00:06.3]} 63. Kg6 {[%clk
0:00:13.7]} 63... Rg2+ {[%clk 0:00:06.6]} 64. Kf6 {[%clk 0:00:14]} 64... Rf2+
{[%clk 0:00:06.5]} 65. Kg5 {[%clk 0:00:14.4]} 65... Rg2+ {[%clk 0:00:06.5]} 66.
Kf4 {[%clk 0:00:14]} 66... Rh2 {[%clk 0:00:06.1]} 67. Kg4 {[%clk 0:00:13.6]}
67... a1=Q {[%clk 0:00:06.4]} 68. Rxa1 {[%clk 0:00:12.8]} 68... Kxa1 {[%clk
0:00:07.3]} 69. e6 {[%clk 0:00:13.6]} 69... Re2 {[%clk 0:00:06.9]} 70. Kf5
{[%clk 0:00:14.1]} 70... Rf2+ {[%clk 0:00:06.7]} 71. Kg5 {[%clk 0:00:14.5]}
71... Re2 {[%clk 0:00:06.9]} 72. Kf6 {[%clk 0:00:13.3]} 72... Rf2+ {[%clk
0:00:07.1]} 73. Kg6 {[%clk 0:00:13.8]} 73... Re2 {[%clk 0:00:07]} 74. Kf7 {[%clk
0:00:13.7]} 74... Rf2+ {[%clk 0:00:07.1]} 75. Kg7 {[%clk 0:00:13.5]} 75... Re2
{[%clk 0:00:07.1]} 76. Kf6 {[%clk 0:00:14]} 76... Rf2+ {[%clk 0:00:07.1]} 77.
Kg5 {[%clk 0:00:14.5]} 77... Rg2+ {[%clk 0:00:06.9]} 78. Kf5 {[%clk 0:00:15.1]}
78... Rf2+ {[%clk 0:00:06.9]} 79. Ke5 {[%clk 0:00:15.6]} 79... Re2+ {[%clk
0:00:06.9]} 80. Kd6 {[%clk 0:00:16.1]} 80... Rd2+ {[%clk 0:00:05.9]} 81. Kc6
{[%clk 0:00:16.4]} 81... Re2 {[%clk 0:00:05.7]} 82. Kd7 {[%clk 0:00:16.9]} 82...
Rd2+ {[%clk 0:00:05.8]} 83. Ke8 {[%clk 0:00:17]} 83... Rh2 {[%clk 0:00:05.6]}
84. e7 {[%clk 0:00:17.4]} 84... Rxh5 {[%clk 0:00:05.5]} 85. Kd8 {[%clk
0:00:18.3]} 85... Re5 {[%clk 0:00:05.5]} 86. e8=Q {[%clk 0:00:19.2]} 86... Rxe8+
{[%clk 0:00:05.3]} 87. Kxe8 {[%clk 0:00:20.1]} 1/2-1/2

[Event "*** Titled Tuesday Blitz"]
[Site "Chess.com"]
[Date "2020.05.05"]
[Round "2"]
[White "Xeniya2005"]
[Black "yoolund"]
[Result "1/2-1/2"]
[WhiteElo "2283"]
[BlackElo "2583"]
[TimeControl "180+1"]
[EndTime "10:20:41 PDT"]
[Termination "Game drawn by stalemate"]

1. e4 {[%clk 0:03:00.9]} 1... c6 {[%clk 0:02:57.5]} 2. d4 {[%clk 0:03:00.3]}
2... d5 {[%clk 0:02:57]} 3. exd5 {[%clk 0:03:00.4]} 3... cxd5 {[%clk 0:02:55.4]}
4. Bd3 {[%clk 0:03:00.4]} 4... Nf6 {[%clk 0:02:54.5]} 5. c3 {[%clk 0:02:59.2]}
5... Nc6 {[%clk 0:02:54.1]} 6. Bf4 {[%clk 0:02:58.5]} 6... Bg4 {[%clk 0:02:53]}
7. Qb3 {[%clk 0:02:58.3]} 7... Qc8 {[%clk 0:02:52.2]} 8. Nd2 {[%clk 0:02:56.1]}
8... e6 {[%clk 0:02:51.8]} 9. Ngf3 {[%clk 0:02:53.5]} 9... Be7 {[%clk
0:02:51.4]} 10. O-O {[%clk 0:02:52.9]} 10... O-O {[%clk 0:02:50.5]} 11. Rae1
{[%clk 0:02:51.5]} 11... Bf5 {[%clk 0:02:45.6]} 12. Bxf5 {[%clk 0:02:46.9]}
12... exf5 {[%clk 0:02:46.5]} 13. Ne5 {[%clk 0:02:32.9]} 13... Re8 {[%clk
0:02:44.5]} 14. Nxc6 {[%clk 0:02:23.6]} 14... Qxc6 {[%clk 0:02:41.7]} 15. Nf3
{[%clk 0:02:22.1]} 15... Nd7 {[%clk 0:02:38.6]} 16. Re2 {[%clk 0:02:16.7]} 16...
Bf6 {[%clk 0:02:13.5]} 17. Rfe1 {[%clk 0:02:11.9]} 17... Rxe2 {[%clk 0:02:13.5]}
18. Rxe2 {[%clk 0:02:12.8]} 18... Nb6 {[%clk 0:02:12.8]} 19. Qc2 {[%clk
0:02:10.4]} 19... Qd7 {[%clk 0:02:02]} 20. h3 {[%clk 0:02:07.7]} 20... Nc4
{[%clk 0:01:52]} 21. Ne5 {[%clk 0:01:47.2]} 21... Bxe5 {[%clk 0:01:49.4]} 22.
Bxe5 {[%clk 0:01:46.5]} 22... Re8 {[%clk 0:01:40.8]} 23. Bf4 {[%clk 0:01:44]}
23... Rxe2 {[%clk 0:01:35.4]} 24. Qxe2 {[%clk 0:01:43.4]} 24... Qe6 {[%clk
0:01:36.3]} 25. Qxe6 {[%clk 0:01:14.3]} 25... fxe6 {[%clk 0:01:37.2]} 26. b3
{[%clk 0:01:12.5]} 26... Na5 {[%clk 0:01:33.1]} 27. Kf1 {[%clk 0:01:10.2]} 27...
Nc6 {[%clk 0:01:31.5]} 28. Ke2 {[%clk 0:01:09.5]} 28... b5 {[%clk 0:01:29.3]}
29. Kd3 {[%clk 0:01:01]} 29... a6 {[%clk 0:01:27.8]} 30. Bd6 {[%clk 0:00:54.3]}
30... Kf7 {[%clk 0:01:26.5]} 31. g3 {[%clk 0:00:40.5]} 31... Ke8 {[%clk
0:01:25.8]} 32. Bf4 {[%clk 0:00:36.1]} 32... Ke7 {[%clk 0:01:24.1]} 33. Bc7
{[%clk 0:00:34.4]} 33... Kd7 {[%clk 0:01:23.3]} 34. Bf4 {[%clk 0:00:34.2]} 34...
Ke7 {[%clk 0:01:23]} 35. h4 {[%clk 0:00:34.5]} 35... a5 {[%clk 0:01:03.4]} 36.
f3 {[%clk 0:00:29.1]} 36... a4 {[%clk 0:01:01.7]} 37. g4 {[%clk 0:00:23.9]}
37... axb3 {[%clk 0:00:52.2]} 38. axb3 {[%clk 0:00:22.9]} 38... Na5 {[%clk
0:00:52.8]} 39. Kc2 {[%clk 0:00:22.1]} 39... Nc6 {[%clk 0:00:52.3]} 40. Kd3
{[%clk 0:00:21]} 40... Na5 {[%clk 0:00:51]} 41. Kc2 {[%clk 0:00:20.4]} 41... Kf6
{[%clk 0:00:46.1]} 42. Be5+ {[%clk 0:00:19.8]} 42... Kg6 {[%clk 0:00:40.2]} 43.
Bf4 {[%clk 0:00:19.5]} 43... fxg4 {[%clk 0:00:37.9]} 44. fxg4 {[%clk 0:00:19.5]}
44... h5 {[%clk 0:00:38.4]} 45. gxh5+ {[%clk 0:00:18.5]} 45... Kxh5 {[%clk
0:00:38.4]} 46. Bg5 {[%clk 0:00:18.4]} 46... Kg4 {[%clk 0:00:23.5]} 47. Be7
{[%clk 0:00:16]} 47... Nc6 {[%clk 0:00:20.4]} 48. Bg5 {[%clk 0:00:16.1]} 48...
e5 {[%clk 0:00:15.7]} 49. dxe5 {[%clk 0:00:14.1]} 49... Nxe5 {[%clk 0:00:16.6]}
50. Be7 {[%clk 0:00:11]} 50... Ng6 {[%clk 0:00:15.4]} 51. Bd8 {[%clk 0:00:10.5]}
51... Nxh4 {[%clk 0:00:15.2]} 52. Kd3 {[%clk 0:00:10.6]} 52... Nf5 {[%clk
0:00:15.1]} 53. c4 {[%clk 0:00:09.8]} 53... bxc4+ {[%clk 0:00:07]} 54. bxc4
{[%clk 0:00:09.8]} 54... dxc4+ {[%clk 0:00:07.5]} 55. Kxc4 {[%clk 0:00:09.2]}
55... Nh6 {[%clk 0:00:06.9]} 56. Kd5 {[%clk 0:00:08.1]} 56... Kf5 {[%clk
0:00:06.7]} 57. Bh4 {[%clk 0:00:07.4]} 57... Ng8 {[%clk 0:00:06.9]} 58. Kd4
{[%clk 0:00:06.2]} 58... Nf6 {[%clk 0:00:06.9]} 59. Ke3 {[%clk 0:00:05.4]} 59...
Kg4 {[%clk 0:00:06.8]} 60. Be1 {[%clk 0:00:04]} 60... g5 {[%clk 0:00:06.8]} 61.
Kf2 {[%clk 0:00:04.3]} 61... Kf5 {[%clk 0:00:06.9]} 62. Kg2 {[%clk 0:00:04.5]}
62... Nd5 {[%clk 0:00:05.1]} 63. Bg3 {[%clk 0:00:04.5]} 63... Nf4+ {[%clk
0:00:06]} 64. Kf3 {[%clk 0:00:04.7]} 64... Ne6 {[%clk 0:00:06]} 65. Kf2 {[%clk
0:00:04.8]} 65... Nf8 {[%clk 0:00:06]} 66. Kg2 {[%clk 0:00:05.2]} 66... Nh7
{[%clk 0:00:06.9]} 67. Kf2 {[%clk 0:00:05.7]} 67... Nf6 {[%clk 0:00:07.8]} 68.
Kf3 {[%clk 0:00:06.2]} 68... Nd5 {[%clk 0:00:08.7]} 69. Kg2 {[%clk 0:00:06.5]}
69... Ne7 {[%clk 0:00:09.6]} 70. Kf3 {[%clk 0:00:06.9]} 70... Nc6 {[%clk
0:00:10.5]} 71. Kf2 {[%clk 0:00:07.4]} 71... Na5 {[%clk 0:00:11.4]} 72. Kg2
{[%clk 0:00:08]} 72... Nb3 {[%clk 0:00:11.5]} 73. Kf3 {[%clk 0:00:08.5]} 73...
Nc5 {[%clk 0:00:11.4]} 74. Kf2 {[%clk 0:00:09.1]} 74... Ne6 {[%clk 0:00:11.5]}
75. Kg2 {[%clk 0:00:09.4]} 75... Kg4 {[%clk 0:00:11.4]} 76. Bh2 {[%clk
0:00:08.9]} 76... Nf4+ {[%clk 0:00:12.3]} 77. Bxf4 {[%clk 0:00:07.9]} 77... Kxf4
{[%clk 0:00:10.1]} 78. Kf2 {[%clk 0:00:08.3]} 78... Kg4 {[%clk 0:00:07.1]} 79.
Kg2 {[%clk 0:00:08.6]} 79... Kh4 {[%clk 0:00:06.1]} 80. Kh2 {[%clk 0:00:09]}
80... g4 {[%clk 0:00:07]} 81. Kg2 {[%clk 0:00:09.3]} 81... g3 {[%clk 0:00:07.9]}
82. Kg1 {[%clk 0:00:09.7]} 82... Kg4 {[%clk 0:00:08.8]} 83. Kg2 {[%clk 0:00:10]}
83... Kf4 {[%clk 0:00:08.2]} 84. Kg1 {[%clk 0:00:10.3]} 84... Kf3 {[%clk
0:00:08.1]} 85. Kf1 {[%clk 0:00:10.6]} 85... g2+ {[%clk 0:00:09]} 86. Kg1 {[%clk
0:00:10.3]} 86... Kg3 {[%clk 0:00:09.9]} 1/2-1/2